bitfinex-derivatives/quotes_SOLF0:USTF0_20250101
["timestamp","ask_amount","ask_price","bid_price","bid_amount"]
[1735711521053,2.6369,190.05,190.01,2.6373]
[1735711521557,2.6369,190.05,190.02,2.6372]
[1735711521954,2.637,190.03,190.0,82.31152316]
[1735711523554,2.637,190.03,190.0,84.94892316]
[1735711524352,2.637,190.03,190.0,82.31152316]
[1735711525957,2.9,190.05,190.0,82.31152316]
[1735711526157,2.6372,190.02,190.0,82.31152316]
[1735711527158,2.6373,190.01,190.0,82.31152316]
[1735711527360,2.6373,190.01,189.98,8.53142521]
[1735711527656,2.6373,190.01,189.97,5.97824496]
[1735711528355,2.6373,190.01,189.97,3.34054496]
[1735711529156,8.53142521,190.04,189.97,3.34054496]
[1735711529459,8.53142521,190.0,189.93,7.23882951]
[1735711529656,2.9,189.99,189.93,7.23882951]
[1735711529859,2.6379,189.97,189.93,7.23882951]
[1735711530054,2.6379,189.97,189.92,11.16982521]
[1735711531364,8.53142521,189.98,189.92,8.53142521]
[1735711532463,2.6381,189.96,189.92,8.53142521]
[1735711533159,6.38839468,189.99,189.94,8.53142521]
[1735711534370,6.38839468,189.99,189.96,2.638]
[1735711535366,3.48839468,189.99,189.96,2.638]
[1735711537866,6.12599468,189.99,189.96,2.638]
[1735711539172,3.48839468,189.99,189.94,8.53142521]
[1735711539377,54.10249398,190.01,189.98,2.6377]
[1735711540372,56.73979398,190.01,189.98,2.6377]
[1735711547080,56.73979398,190.01,189.97,2.6378]
[1735711547279,54.10249398,190.01,189.98,8.53142521]
[1735711547981,54.10249398,190.01,189.99,2.6376]
[1735711548879,54.10249398,190.01,189.98,2.6377]
[1735711550883,56.73979398,190.01,189.98,2.6377]
[1735711551484,54.10249398,190.01,189.99,2.6375]
[1735711551685,2.6372,190.02,189.99,2.6375]
[1735711551881,2.6372,190.02,189.98,2.6377]
[1735711552582,2.6373,190.01,189.98,2.6377]
[1735711553689,2.6373,190.01,189.97,11.16922521]
[1735711559292,2.6375,190.0,189.97,11.16922521]
[1735711559893,2.6375,190.0,189.97,2.6378]
[1735711560393,8.53142521,190.02,189.95,88.16055289]
[1735711560692,2.6377,189.99,189.96,2.638]
[1735711561693,2.6379,189.97,189.95,88.16055289]
[1735711561989,8.53142521,189.99,189.95,79.62912768]
[1735711562882,2.6377,189.98,189.95,79.62912768]
[1735711563086,8.53142521,189.99,189.95,79.62912768]
[1735711563486,2.6379,189.97,189.95,79.62912768]
[1735711563687,8.53142521,189.99,189.95,79.62912768]
[1735711565388,2.638,189.96,189.95,79.62912768]
[1735711565988,2.9,190.0,189.91,8.53142521]
[1735711565989,8.53142521,189.97,189.91,8.53142521]
[1735711566192,2.6383,189.94,189.9,5.98076159]
[1735711566392,2.6383,189.94,189.9,14.5121868]
[1735711570097,2.6384,189.93,189.9,11.8733868]
[1735711572603,2.6384,189.93,189.9,3.34196159]
[1735711572802,2.6386,189.92,189.9,3.34196159]
[1735711573895,2.6385,189.93,189.9,3.34196159]
[1735711575599,2.6386,189.92,189.9,11.8733868]
[1735711576696,2.9,189.95,189.9,3.34196159]
[1735711576897,2.6387,189.91,189.9,3.34196159]
[1735711578093,11.43142521,189.95,189.88,8.53142521]
[1735711578401,2.6389,189.9,189.88,8.53142521]
[1735711578601,2.6389,189.9,189.86,4.1758]
[1735711578796,2.6389,189.9,189.88,8.53142521]
[1735711579199,11.43142521,189.95,189.88,8.53142521]
[1735711579396,2.6387,189.91,189.88,8.53142521]
[1735711579599,2.6387,189.91,189.87,85.85497509]
[1735711579802,2.6387,189.91,189.88,8.53142521]
[1735711582099,2.6387,189.91,189.87,83.21577509]
[1735711582305,2.6387,189.91,189.88,11.17052521]
[1735711584700,2.6387,189.91,189.88,2.6391]
[1735711584904,2.6387,189.91,189.88,11.17052521]
[1735711588304,2.6389,189.9,189.87,83.21577509]
[1735711588505,2.6389,189.9,189.87,91.7472003]
[1735711589412,2.6389,189.9,189.87,94.3864003]
[1735711589607,8.53142521,189.93,189.87,94.3864003]
[1735711589608,8.53142521,189.93,189.87,83.21577509]
[1735711589911,1.5912,189.94,189.87,83.21577509]
[1735711590112,8.53142521,189.93,189.87,83.21577509]
[1735711590313,8.53142521,189.93,189.87,91.7472003]
[1735711590816,2.6387,189.92,189.88,2.639]
[1735711592615,2.6387,189.91,189.88,2.639]
[1735711593312,8.53142521,189.91,189.87,83.21577509]
[1735711594414,2.6391,189.88,189.87,83.21577509]
[1735711596213,2.6392,189.87,189.85,8.53142521]
[1735711598023,2.6392,189.88,189.85,8.53142521]
[1735711598324,2.6392,189.88,189.85,11.17092521]
[1735711598520,2.6392,189.88,189.85,8.53142521]
[1735711601924,11.43142521,189.91,189.85,8.53142521]
[1735711602223,2.6393,189.87,189.85,8.53142521]
[1735711602428,11.43142521,189.91,189.85,8.53142521]
[1735711602719,2.6392,189.88,189.85,8.53142521]
[1735711602924,2.9,189.91,189.87,2.6392]
[1735711603827,2.9,189.91,189.85,86.29571454]
[1735711604025,2.9,189.91,189.85,88.93521454]
[1735711604220,11.43142521,189.91,189.85,88.93521454]
[1735711605217,11.43142521,189.91,189.85,86.29571454]
[1735711606224,2.6392,189.88,189.85,86.29571454]
[1735711607028,11.43142521,189.91,189.85,77.76428933]
[1735711607224,2.6393,189.87,189.85,77.76428933]
[1735711612626,61.92547757,190.0,189.85,77.76428933]
[1735711612834,2.6391,189.88,189.85,80.40378933]
[1735711614733,8.53142521,189.9,189.85,77.76428933]
[1735711617331,2.6393,189.87,189.85,77.76428933]
[1735711617532,8.53142521,189.9,189.85,77.76428933]
[1735711618439,2.6394,189.86,189.85,77.76428933]
[1735711627945,2.6394,189.86,189.84,1.5612]
[1735711632549,2.6395,189.85,189.84,1.5612]
[1735711633643,8.53142521,189.88,189.83,1.6445]
[1735711633839,8.53142521,189.86,189.78,30.45631805]
[1735711634039,8.53142521,189.86,189.79,8.53142521]
[1735711634249,2.6404,189.79,189.78,28.95531805]
[1735711634441,11.17182521,189.79,189.78,28.95531805]
[1735711634640,11.17182521,189.79,189.72,50.57425211]
[1735711634641,8.53142521,189.79,189.75,28.95531805]
[1735711634846,11.17222521,189.76,189.75,28.95531805]
[1735711635851,8.53142521,189.76,189.71,2.6415]
[1735711636150,8.53142521,189.76,189.7,11.57132521]
[1735711636350,8.53142521,189.76,189.72,2.6412]
[1735711637048,8.53142521,189.78,189.72,2.6412]
[1735711637542,8.53142521,189.78,189.72,11.17262521]
[1735711637749,1.6057,189.87,189.74,8.53142521]
[1735711638053,2.64,189.82,189.76,11.17212521]
[1735711638551,8.53142521,189.81,189.76,11.17212521]
[1735711638752,11.17152521,189.81,189.76,11.17212521]
[1735711639554,2.6403,189.8,189.76,8.53142521]
[1735711640754,2.6405,189.78,189.76,8.53142521]
[1735711641249,2.6405,189.79,189.76,8.53142521]
[1735711643052,2.9,189.81,189.76,8.53142521]
[1735711643245,2.6403,189.8,189.76,8.53142521]
[1735711643752,2.6403,189.8,189.76,11.17212521]
[1735711646647,2.6403,189.8,189.76,2.6407]
[1735711646853,8.53142521,189.79,189.73,8.53142521]
[1735711647246,2.6407,189.77,189.72,11.17262521]
[1735711647948,2.6407,189.77,189.73,2.6412]
[1735711648352,8.53142521,189.77,189.71,2.6414]
[1735711648848,8.53142521,189.77,189.71,11.17282521]
[1735711649152,2.641,189.75,189.71,11.17282521]
[1735711655355,8.53142521,189.77,189.71,11.17282521]
[1735711655556,2.6411,189.74,189.71,8.53142521]
[1735711656855,2.6411,189.74,189.71,11.17292521]
[1735711660960,2.9,189.76,189.71,8.53142521]
[1735711661558,2.9,189.76,189.73,2.6411]
[1735711661759,2.9,189.76,189.71,8.53142521]
[1735711661958,8.53142521,189.77,189.71,8.53142521]
[1735711662153,8.53142521,189.77,189.74,2.6409]
[1735711663454,11.17202521,189.77,189.74,2.6409]
[1735711666465,2.6409,189.75,189.71,8.53142521]
[1735711666666,2.6409,189.75,189.67,4.6362]
[1735711666967,2.6409,189.75,189.7,8.53142521]
[1735711667566,2.6409,189.75,189.72,2.6413]
[1735711668266,2.6409,189.75,189.67,4.6362]
[1735711668267,2.6414,189.72,189.69,2.6417]
[1735711669471,8.53142521,189.75,189.68,8.53142521]
[1735711670164,11.17242521,189.75,189.7,2.6416]
[1735711671871,2.6411,189.74,189.7,2.6416]
[1735711672266,8.53142521,189.75,189.7,2.6416]
[1735711673575,2.6412,189.73,189.7,2.6416]
[1735711673865,11.43142521,189.75,189.7,2.6416]
[1735711674072,2.6411,189.74,189.7,2.6416]
[1735711678586,14.07232521,189.75,189.72,2.6413]
[1735711678979,5.5409,189.75,189.72,2.6413]
[1735711679278,14.07232521,189.75,189.72,2.6413]
[1735711679882,11.43142521,189.75,189.72,2.6413]
[1735711680280,8.53142521,189.75,189.72,2.6413]
[1735711683585,8.53142521,189.75,189.69,8.53142521]
[1735711683886,11.17242521,189.75,189.69,8.53142521]
[1735711685386,8.53142521,189.75,189.72,2.6412]
[1735711687985,8.53142521,189.75,189.71,2.6414]
[1735711689488,2.6411,189.74,189.71,2.6414]
[1735711690983,12.22426888,189.77,189.7,8.53142521]
[1735711691587,14.86496888,189.77,189.72,2.6413]
[1735711693388,2.6408,189.76,189.72,2.6413]
[1735711701299,2.641,189.75,189.71,2.6414]
[1735711701497,8.53142521,189.75,189.68,8.53142521]
[1735711702496,2.6412,189.73,189.7,2.6416]
[1735711711203,2.6411,189.74,189.7,2.6416]
[1735711712999,64.35785768,189.76,189.69,86.43149443]
[1735711713207,66.99865768,189.76,189.73,2.6411]
[1735711713399,52.92643247,189.76,189.71,8.53142521]
[1735711713601,52.92643247,189.76,189.73,8.53142521]
[1735711714000,52.92643247,189.76,189.74,2.641]
[1735711724412,3.69284367,189.77,189.75,2.6409]
[1735711724603,3.69284367,189.77,189.73,8.53142521]
[1735711725508,3.69284367,189.77,189.75,2.6409]
[1735711728511,3.69284367,189.77,189.73,8.53142521]
[1735711728709,3.69284367,189.77,189.74,2.641]
[1735711730409,3.69284367,189.77,189.73,8.53142521]
[1735711730611,6.33354367,189.77,189.73,11.17262521]
[1735711732512,3.69284367,189.77,189.73,8.53142521]
[1735711732714,363.38704536,190.08,189.75,8.53142521]
[1735711732914,1.5428,189.87,189.81,8.53142521]
[1735711733115,8.53142521,189.84,189.76,1.524]
[1735711733304,8.53142521,189.82,189.76,10.05542521]
[1735711733505,8.53142521,189.82,189.76,8.53142521]
[1735711733813,2.6404,189.79,189.75,82.14106844]
[1735711734112,8.53142521,189.8,189.75,76.60016844]
[1735711735416,2.6405,189.78,189.75,76.60016844]
[1735711735614,2.6405,189.78,189.74,11.17242521]
[1735711737919,2.6404,189.79,189.75,2.6409]
[1735711740617,2.6405,189.78,189.75,2.6409]
[1735711741725,8.53142521,189.8,189.75,2.6409]
[1735711741925,2.6404,189.79,189.75,2.6409]
[1735711745429,2.6406,189.78,189.74,2.641]
[1735711745627,8.53142521,189.8,189.74,2.641]
[1735711746031,2.6405,189.79,189.74,2.641]
[1735711746228,8.53142521,189.8,189.74,2.641]
[1735711746829,8.53142521,189.8,189.73,78.10779701]
[1735711747738,2.6407,189.77,189.73,80.74899701]
[1735711750542,2.6408,189.76,189.73,78.10779701]
[1735711751042,8.53142521,189.78,189.73,76.61149701]
[1735711751246,2.6406,189.78,189.74,2.6409]
[1735711751542,8.53142521,189.8,189.73,76.61149701]
[1735711751748,8.53142521,189.8,189.73,79.25269701]
[1735711752741,8.53142521,189.8,189.73,76.61149701]
[1735711753138,52.05095789,189.81,189.73,76.61149701]
[1735711753338,2.6402,189.8,189.76,2.6406]
[1735711754835,64.03436862,189.81,189.78,2.6404]
[1735711755741,55.50294341,189.81,189.78,2.6404]
[1735711759237,58.14304341,189.81,189.78,2.6404]
[1735711760542,2.6403,189.8,189.77,2.6405]
[1735711760744,55.50294341,189.81,189.76,8.53142521]
[1735711761441,58.14314341,189.81,189.77,2.6406]
[1735711762040,8.53142521,189.8,189.77,2.6406]
[1735711762240,11.17162521,189.8,189.77,2.6406]
[1735711762647,2.6405,189.79,189.75,2.6408]
[1735711763445,8.53142521,189.8,189.75,2.6408]
[1735711763647,2.6405,189.78,189.75,2.6408]
[1735711766246,11.17172521,189.8,189.76,2.6407]
[1735711766449,8.53142521,189.8,189.76,2.6407]
[1735711767347,2.6404,189.79,189.74,11.43142521]
[1735711767550,8.53142521,189.78,189.73,76.61149701]
[1735711767752,8.53142521,189.78,189.72,8.53142521]
[1735711768050,2.6407,189.77,189.73,2.6411]
[1735711770051,8.53142521,189.78,189.73,2.6411]
[1735711770252,2.6408,189.76,189.73,2.6411]
[1735711770751,2.6408,189.76,189.72,11.17272521]
[1735711773554,2.641,189.75,189.71,2.6415]
[1735711773851,2.641,189.75,189.71,67.4026757]
[1735711776458,2.6411,189.74,189.71,64.7611757]
[1735711779363,2.6411,189.74,189.71,67.4025757]
[1735711779859,8.53142521,189.76,189.71,67.4025757]
[1735711780163,2.641,189.75,189.71,67.4025757]
[1735711780559,2.6411,189.74,189.71,67.4025757]
[1735711781365,2.6412,189.73,189.71,64.7611757]
[1735711781763,8.53142521,189.75,189.71,64.7611757]
[1735711781959,2.6412,189.74,189.71,64.7611757]
[1735711782264,8.53142521,189.75,189.71,64.7611757]
[1735711782463,2.6411,189.74,189.71,64.7611757]
[1735711785467,2.6412,189.73,189.71,64.7611757]
[1735711786467,2.6413,189.72,189.71,64.7611757]
[1735711788763,2.9,189.75,189.71,64.7611757]
[1735711788967,2.6412,189.73,189.71,64.7611757]
[1735711793465,2.6413,189.72,189.71,64.7611757]
[1735711797275,2.6412,189.73,189.71,64.7611757]
[1735711799172,11.17252521,189.74,189.71,67.4026757]
[1735711799774,8.53142521,189.74,189.72,2.6413]
[1735711800975,11.17242521,189.74,189.72,2.6413]
[1735711801478,8.53142521,189.74,189.71,64.7611757]
[1735711801683,2.6413,189.73,189.71,64.7611757]
[1735711808083,2.6413,189.73,189.71,67.4026757]
[1735711808585,8.53142521,189.74,189.71,67.4026757]
[1735711810484,11.17252521,189.74,189.71,67.4026757]
[1735711819903,8.53142521,189.74,189.71,64.7611757]
[1735711820101,8.53142521,189.74,189.72,2.6413]
[1735711820302,2.641,189.75,189.72,2.6413]
[1735711820597,43.99967839,189.78,189.71,64.7611757]
[1735711820802,46.64027839,189.78,189.75,2.6408]
[1735711820998,46.64027839,189.78,189.73,8.53142521]
[1735711822110,46.64027839,189.78,189.74,2.641]
[1735711823206,2.6406,189.78,189.74,2.641]
[1735711824305,8.53142521,189.79,189.73,8.53142521]
[1735711824505,11.17182521,189.79,189.75,2.6409]
[1735711825405,2.6405,189.78,189.75,2.6409]
[1735711826408,2.6405,189.78,189.73,8.53142521]
[1735711826610,2.6405,189.78,189.73,11.17252521]
[1735711828410,2.6405,189.78,189.74,2.641]
[1735711830805,8.53142521,189.79,189.73,8.53142521]
[1735711831007,8.53142521,189.79,189.75,2.6408]
[1735711832516,2.6405,189.78,189.75,2.6408]
[1735711834016,53.49344785,189.79,189.75,2.6408]
[1735711835406,3.10092809,189.8,189.75,8.53142521]
[1735711835605,5.74112809,189.8,189.75,8.53142521]
[1735711835809,3.10092809,189.8,189.75,8.53142521]
[1735711836012,2.9,189.88,189.79,8.53142521]
[1735711836214,8.53142521,189.85,189.79,8.53142521]
[1735711836416,53.94494973,189.85,189.79,8.53142521]
[1735711836612,2.6397,189.84,189.8,2.6401]
[1735711840615,2.6397,189.84,189.81,2.64]
[1735711841413,2.6397,189.84,189.79,8.53142521]
[1735711841613,2.6397,189.84,189.8,2.6401]
[1735711842213,2.6399,189.83,189.79,14.07162521]
[1735711842412,2.6399,189.83,189.79,5.5402]
[1735711843010,2.6399,189.83,189.8,2.6402]
[1735711851921,2.6397,189.84,189.8,2.6402]
[1735711853624,2.6397,189.84,189.81,2.64]
[1735711854817,2.6397,189.84,189.8,2.6402]
[1735711855328,8.53142521,189.83,189.78,2.6404]
[1735711855625,8.53142521,189.83,189.77,2.9]
[1735711855827,2.6403,189.8,189.77,5.5406]
[1735711856324,2.6403,189.8,189.77,2.6406]
[1735711856525,2.6405,189.78,189.73,10.13882951]
[1735711856720,2.6405,189.78,189.73,8.53142521]
[1735711856923,2.6405,189.78,189.73,11.43142521]
[1735711857228,2.6405,189.78,189.75,2.6409]
[1735711857719,11.17182521,189.79,189.75,2.6409]
[1735711859728,2.6404,189.79,189.75,11.17232521]
[1735711860618,8.53142521,189.81,189.75,11.17232521]
[1735711860619,2.6405,189.78,189.75,2.6409]
[1735711861127,8.53142521,189.81,189.75,2.6409]
[1735711861330,2.6404,189.79,189.75,2.6409]
[1735711861928,2.6404,189.79,189.76,2.6407]
[1735711862227,2.6404,189.79,189.73,11.43142521]
[1735711862627,2.6404,189.79,189.75,2.6408]
[1735711863129,2.6402,189.8,189.76,2.6407]
[1735711863325,8.53142521,189.81,189.75,8.53142521]
[1735711863626,8.53142521,189.83,189.75,8.53142521]
[1735711864123,2.6401,189.81,189.73,2.9]
[1735711864327,2.6401,189.81,189.75,8.53142521]
[1735711865433,11.17152521,189.81,189.77,2.6406]
[1735711866431,8.53142521,189.81,189.75,8.53142521]
[1735711866730,2.6404,189.79,189.75,11.17222521]
[1735711867329,2.6404,189.79,189.76,2.6407]
[1735711867526,11.17162521,189.81,189.75,8.53142521]
[1735711868023,8.53142521,189.81,189.78,2.6405]
[1735711872035,2.6399,189.82,189.78,2.6405]
[1735711875440,8.53142521,189.83,189.78,2.6405]
[1735711875633,2.6401,189.81,189.78,2.6405]
[1735711876234,2.6402,189.8,189.77,2.6406]
[1735711876433,2.6402,189.8,189.75,8.53142521]
[1735711877539,2.6402,189.8,189.76,2.6407]
[1735711878538,2.6405,189.79,189.75,11.17232521]
[1735711879038,2.6405,189.79,189.75,2.6409]
[1735711881439,8.53142521,189.81,189.75,2.6409]
[1735711881646,2.6405,189.78,189.75,2.6409]
[1735711882945,11.17182521,189.79,189.75,2.6409]
[1735711883149,8.53142521,189.77,189.74,2.641]
[1735711883341,8.53142521,189.75,189.72,61.53016309]
[1735711883536,8.53142521,189.75,189.7,7.23882951]
[1735711884145,2.6412,189.73,189.7,7.23882951]
[1735711884545,8.53142521,189.75,189.7,7.23882951]
[1735711884746,8.53142521,189.75,189.69,5.6126824]
[1735711885444,2.6411,189.74,189.69,5.6126824]
[1735711886441,8.53142521,189.75,189.71,2.6413]
[1735711887749,50.42313888,189.76,189.71,2.6413]
[1735711887940,8.53142521,189.74,189.71,2.6413]
[1735711888148,58.95456409,189.76,189.72,2.6413]
[1735711888748,8.53142521,189.74,189.72,2.6413]
[1735711890451,8.53142521,189.74,189.69,11.50250761]
[1735711890647,8.53142521,189.74,189.7,2.6415]
[1735711893550,11.17252521,189.74,189.7,2.6415]
[1735711894851,2.6411,189.74,189.7,2.6415]
[1735711895252,8.53142521,189.75,189.69,11.50250761]
[1735711895753,8.53142521,189.75,189.7,2.6415]
[1735711895955,8.53142521,189.75,189.69,11.50250761]
[1735711897453,8.53142521,189.75,189.72,2.6412]
[1735711901148,8.53142521,189.75,189.69,11.50250761]
[1735711901149,47.78233888,189.76,189.73,2.6411]
[1735711909058,8.53142521,189.75,189.7,2.6415]
[1735711909257,8.53142521,189.75,189.69,71.96563199]
[1735711910559,11.17232521,189.75,189.71,2.6414]
[1735711911461,2.6411,189.74,189.7,2.6416]
[1735711912757,8.53142521,189.75,189.7,2.6416]
[1735711912964,47.78233888,189.76,189.73,2.6411]
[1735711913859,50.42313888,189.76,189.73,2.6411]
[1735711914059,50.42313888,189.76,189.7,8.53142521]
[1735711914265,47.78233888,189.76,189.7,8.53142521]
[1735711915469,47.78233888,189.76,189.73,2.6411]
[1735711916469,47.78233888,189.76,189.75,2.6409]
[1735711917264,47.78233888,189.76,189.74,2.641]
[1735711918272,47.78233888,189.76,189.71,8.53142521]
[1735711918473,47.78233888,189.76,189.72,2.6412]
[1735711919875,47.78233888,189.76,189.71,8.53142521]
[1735711920475,47.78233888,189.76,189.73,2.6411]
[1735711921471,47.78233888,189.76,189.69,63.43420678]
[1735711921775,47.78233888,189.76,189.72,2.6413]
[1735711921976,47.78233888,189.76,189.7,8.53142521]
[1735711923178,47.78233888,189.76,189.73,2.6412]
[1735711924575,50.42313888,189.76,189.73,2.6412]
[1735711925578,2.641,189.75,189.71,2.6414]
[1735711926478,2.6412,189.74,189.69,66.07580678]
[1735711928979,2.6412,189.74,189.7,2.6415]
[1735711938690,2.6412,189.73,189.7,2.6415]
[1735711941289,11.17242521,189.75,189.71,2.6414]
[1735711943190,8.53142521,189.75,189.69,63.43420678]
[1735711943391,47.78233888,189.76,189.74,2.641]
[1735711947794,47.78233888,189.76,189.75,2.6409]
[1735711948395,3.14224233,189.76,189.75,2.6409]
[1735711950497,3.14224233,189.76,189.74,2.641]
[1735711953098,3.14224233,189.76,189.73,11.17252521]
[1735711953901,5.78304233,189.76,189.73,11.17252521]
[1735711954799,5.78304233,189.76,189.73,11.17262521]
[1735711955103,5.78304233,189.76,189.73,2.6412]
[1735711956002,3.14224233,189.76,189.73,2.6412]
[1735711956405,3.14224233,189.76,189.71,8.53142521]
[1735711957206,2.6411,189.74,189.71,8.53142521]
[1735711958411,11.67366754,189.76,189.69,70.58097755]
[1735711958606,2.6412,189.73,189.69,73.22267755]
[1735711960003,2.6412,189.73,189.69,65.98384804]
[1735711960406,11.67366754,189.76,189.69,63.34214804]
[1735711960606,2.6414,189.72,189.69,63.34214804]
[1735711960805,11.67366754,189.76,189.69,63.34214804]
[1735711961407,2.6413,189.73,189.69,63.34214804]
[1735711963211,2.6413,189.73,189.69,65.98384804]
[1735711964513,2.6413,189.73,189.69,74.51527325]
[1735711965917,11.67366754,189.76,189.69,71.87357325]
[1735711966113,8.53142521,189.74,189.69,71.87357325]
[1735711966311,8.53142521,189.74,189.69,63.34214804]
[1735711967122,2.6414,189.72,189.69,63.34214804]
[1735711968517,2.6415,189.71,189.69,63.34214804]
[1735711969128,8.53142521,189.74,189.69,63.34214804]
[1735711970331,2.6413,189.72,189.69,63.34214804]
[1735711975032,2.6416,189.71,189.67,2.642]
[1735711978839,8.53142521,189.72,189.66,11.72662521]
[1735711979040,11.17272521,189.72,189.68,2.6418]
[1735711981539,8.53142521,189.72,189.66,68.38110797]
[1735711981738,19.18224233,189.76,189.68,8.53142521]
[1735711981939,8.53142521,189.75,189.68,8.53142521]
[1735711982439,2.6411,189.74,189.7,2.6416]
[1735711987344,2.6412,189.73,189.7,2.6416]
[1735711992748,8.53142521,189.73,189.68,2.6417]
[1735711993453,2.6415,189.71,189.68,2.6417]
[1735711995454,2.6415,189.71,189.66,67.08851227]
[1735711995653,2.6415,189.71,189.67,2.642]
[1735711995950,25.06142521,189.73,189.67,2.642]
[1735711996155,2.6416,189.7,189.67,2.642]
[1735711997852,2.6418,189.69,189.66,59.84968276]
[1735711998554,2.6416,189.71,189.67,2.6419]
[1735711998956,8.53142521,189.72,189.67,2.6419]
[1735712000451,8.53142521,189.72,189.66,62.49188276]
[1735712000658,8.53142521,189.7,189.66,62.49188276]
[1735712001458,2.6418,189.69,189.66,62.49188276]
[1735712005461,2.6418,189.69,189.66,59.84968276]
[1735712006561,8.53142521,189.7,189.66,59.84968276]
[1735712006762,11.17302521,189.7,189.66,62.49178276]
[1735712008367,2.6416,189.7,189.66,62.49178276]
[1735712010065,11.17302521,189.7,189.66,62.49178276]
[1735712010966,2.6419,189.68,189.66,59.84968276]
[1735712011466,2.6419,189.68,189.66,56.65448276]
[1735712017364,2.6418,189.69,189.66,59.29658276]
[1735712017575,2.6418,189.69,189.66,67.82800797]
[1735712018467,8.53142521,189.7,189.66,67.82800797]
[1735712018669,2.6413,189.72,189.69,2.6417]
[1735712022675,17.3613,189.72,189.69,2.6417]
[1735712025369,14.72,189.72,189.71,2.6415]
[1735712026679,14.72,189.72,189.7,2.6416]
[1735712029584,14.72,189.72,189.71,2.6415]
[1735712033385,14.72,189.72,189.69,1.5955]
[1735712033587,14.72,189.72,189.7,2.6415]
[1735712037889,14.72,189.72,189.69,1.5955]
[1735712038089,14.72,189.72,189.69,4.2372]
[1735712042895,17.3614,189.72,189.68,41.70764048]
[1735712049000,17.3614,189.72,189.68,11.17332521]
[1735712051500,14.72,189.72,189.68,8.53142521]
[1735712051692,14.72,189.72,189.7,2.6416]
[1735712053902,14.72,189.72,189.71,2.6415]
[1735712054103,14.72,189.72,189.7,47.59634113]
[1735712054402,14.72,189.72,189.7,39.06491592]
[1735712061407,2.6415,189.71,189.7,39.06491592]
[1735712063009,17.4215,189.71,189.7,39.06491592]
[1735712063506,14.78,189.71,189.7,39.06491592]
[1735712093536,14.78,189.71,189.69,2.6416]
[1735712093939,14.78,189.71,189.7,2.6416]
[1735712102045,14.78,189.71,189.68,5.5418]
[1735712102243,14.78,189.71,189.68,14.07322521]
[1735712104556,14.78,189.71,189.68,11.43142521]
[1735712104752,17.4215,189.71,189.68,2.9]
[1735712108252,14.78,189.71,189.67,8.53142521]
[1735712108456,14.78,189.71,189.66,2.9]
[1735712108957,8.53142521,189.7,189.66,2.9]
[1735712109559,2.6418,189.69,189.66,2.9]
[1735712110460,20.1618,189.69,189.66,2.9]
[1735712113958,17.52,189.69,189.66,2.9]
[1735712116769,17.52,189.69,189.66,5.5421]
[1735712117066,17.52,189.69,189.67,8.53142521]
[1735712118468,17.52,189.69,189.68,2.6419]
[1735712124671,4.73400001,189.69,189.68,2.6419]
[1735712124973,8.53142521,189.82,189.68,1.5703]
[1735712125279,8.53142521,189.82,189.75,47.58383259]
[1735712125580,8.53142521,189.78,189.75,39.05240738]
[1735712125977,11.81,189.78,189.75,39.05240738]
[1735712126178,8.53142521,189.77,189.75,39.05240738]
[1735712127474,2.6408,189.76,189.75,39.05240738]
[1735712128879,8.53142521,189.77,189.75,39.05240738]
[1735712128880,11.17202521,189.77,189.75,39.05240738]
[1735712129071,2.6406,189.77,189.75,39.05240738]
[1735712129475,11.81,189.78,189.75,39.05240738]
[1735712129680,14.4505,189.78,189.75,39.05240738]
[1735712131877,14.4505,189.78,189.75,41.69330738]
[1735712134879,11.81,189.78,189.75,39.05240738]
[1735712135079,11.81,189.78,189.77,2.6406]
[1735712137587,4.1559,189.85,189.8,2.6401]
[1735712137780,4.1559,189.85,189.8,14.07152521]
[1735712138582,3.1523,189.92,189.8,11.43142521]
[1735712138786,2.6393,189.87,189.82,11.17132521]
[1735712140982,9.34,189.87,189.82,8.53142521]
[1735712141188,9.34,189.87,189.84,11.17102521]
[1735712141781,9.34,189.87,189.85,5.5395]
[1735712142281,9.34,189.87,189.86,8.53142521]
[1735712142687,9.34,189.87,189.86,11.17082521]
[1735712145890,9.34,189.87,189.86,8.53142521]
[1735712146587,9.34,189.87,189.86,11.17082521]
[1735712146788,9.34,189.87,189.86,8.53142521]